[Event "13th Dolomiti-Forni di Sopra-A 2022"]
[Site "Forni di Sopra"]
[Date "2022.06.16"]
[Round "6.13"]
[White "Tonel, Giulia"]
[Black "Candian, Lorenzo"]
[Result "0-1"]
[ECO "A00"]
[WhiteElo "1964"]
[BlackElo "2048"]
[Annotator "NA RC"]
[PlyCount "56"]
[EventDate "2022.06.13"]
[EventType "swiss"]
[EventCountry "ITA"]
[SourceTitle "playchess.com"]
[Source "ChessBase"]
[SourceQuality "1"]
[TimeControl "40/5400+30:1800+30"]

1. e4 {[%emt 0:00:06]} d5 {[%emt 0:02:38]} 2. Nc3 d4 {[%emt 0:01:32]} 3. Nce2 {[%emt 0:02:24]} c5 {[%emt 0:01:39]} 4. d3 {[%emt 0:03:22]} Nc6 {[%emt 0:00:53]} 5. f4 {[%emt 0:00:44]} e5 {[%emt 0:00:55]} 6. Nf3 {[%emt 0:00:45]} Bd6 {[%emt 0:00:34]} 7. f5 {[%emt 0:05:12]} Bd7 {[%emt 0:04:15]} 8. a4 {[%emt 0:03:55]} Qc7 {[%emt 0:01:10]} 9. g4 {[%emt 0:10:13]} g6 {[%emt 0:14:23]} 10. Ng3 {[%emt 0:02:41]} O-O-O {[%emt 0:03:44]} 11. Bg2 {[%emt 0:02:36]} h5 12. gxh5 {[%emt 0:03:02]} gxf5 {[%emt 0:05:59]} 13. Ng5 {[%emt 0:01:46]} Nh6 14. exf5 {[%emt 0:03:40]} f6 {[%emt 0:09:00]} 15. N5e4 {[%emt 0:04:11]} Nxf5 {[%emt 0:01:13]} 16. Nxf5 {[%emt 0:07:46]} Bxf5 {[%emt 0:00:12]} 17. O-O {[%emt 0:00:27]} Bxe4 {[%emt 0:05:21]} 18. Bxe4 {[%emt 0:03:40]} Rdf8 {[%emt 0:04:50]} 19. Qg4+ {[%emt 0:05:03]} Kb8 {[%emt 0:00:20]} 20. Kh1 {[%emt 0:00:16]} Ne7 {[%emt 0:00:55]} 21. Bd2 {[%emt 0:02:24]} Rhg8 {[%emt 0:03:57]} 22. Qe6 {[%emt 0:04:29]} f5 {[%emt 0:02:24]} 23. Bf3 {[%emt 0:01:14]} e4 {[%emt 0:01:27]} 24. dxe4 {[%emt 0:01:51]} Bxh2 25. e5 {[%emt 0:03:57]} Bxe5 {[%emt 0:00:55]} 26. Rae1 {[%emt 0:01:26]} Bd6 {[%emt 0:00:55]} 27. Bf4 Nc8 {[%emt 0:02:52]} 28. Bh6 {[%emt 0:11:44]} Qd8 {[%emt 0:00:38]} 0-1

[Event "13th Dolomiti-Forni di Sopra-A 2022"]
[Site "Forni di Sopra"]
[Date "2022.06.17"]
[Round "7.2"]
[White "Dardha, Daniel"]
[Black "Moroni, Luca Jr"]
[Result "1-0"]
[ECO "E60"]
[WhiteElo "2561"]
[BlackElo "2581"]
[Annotator "TA"]
[PlyCount "75"]
[EventDate "2022.06.13"]
[EventType "swiss"]
[EventCountry "ITA"]
[SourceTitle "playchess.com"]
[Source "ChessBase"]
[SourceQuality "1"]
[TimeControl "40/5400+30:1800+30"]

{[%evp 9,75,16,16,18,13,15,21,-20,-14,-21,-14,-22,0,0,0,1,26,-10,58,49,43,47,71,71,72,73,115,97,131,122,123,90,90,87,93,89,96,83,121,121,121,121,122,122,247,247,278,266,509,509,489,446,446,439,2081,1799,2278,2574,4162,4133,2533,2365,29980,29981,29986,29987,29986,29987]} 1. c4 {[%emt 0:06:04]} Nf6 {[%emt 0:00:07]} 2. d4 {[%emt 0:01:22][%cal Bd2d4,Bd4d5][%mdl 32]} g6 {[%emt 0:00:03]} 3. h4 {[%emt 0:00:42]} Nc6 {[%emt 0:00:03]} 4. Nc3 {[%emt 0:01:06]} Bg7 {[%emt 0:05:43]} 5. d5 {[%emt 0:01:01]} Ne5 {[%emt 0:00:05]} 6. e4 {[%emt 0:00:07] E60: King's Indian: Unusual lines and Fianchetto Variation without Nc3.} d6 {[%emt 0:00:04]} 7. Be2 {[%emt 0:00:50]} c6 {[%emt 0:02:57] [#]} 8. h5 $146 {[%emt 0:01:57] The position is equal.} (8. Nf3 $5 {[%cal Rf3e5]}) ({Predecessor:} 8. Nh3 Bxh3 9. Rxh3 h5 10. Kf1 Rc8 11. Qb3 Qc7 12. Bf4 O-O 13. g3 cxd5 14. cxd5 {0-1 (71) Atakhan,A (2294)-Darini,P (2432) Teheran 2021}) 8... Nxh5 {[%emt 0:00:38]} 9. Nf3 {[%emt 0:11:16]} Nxf3+ {[%emt 0:18:14]} (9... cxd5 {looks sharper.} 10. Nxe5 Bxe5 11. Nxd5 e6) 10. Bxf3 {[%emt 0:01:04]} Qb6 {[%emt 0:07:38]} (10... cxd5 {keeps more tension.} 11. Bxh5 d4 12. Nd5 e6) 11. Bxh5 {[%emt 0:16:59]} gxh5 {[%emt 0:01:24]} 12. Rxh5 {[%emt 0:00:43]} Bd7 {[%emt 0:08:32]} 13. Qb3 {[%emt 0:02:18]} c5 {[%emt 0:08:25]} (13... Bd4 $11) 14. Bf4 {[%emt 0:05:51]} Qxb3 {[%emt 0:10:11]} 15. axb3 {[%emt 0:00:35]} Bxc3+ {[%emt 0:01:05]} 16. bxc3 {[%emt 0:00:06]} f6 {[%emt 0:00:03]} 17. Kd2 {[%emt 0:01:35] White is more active.} O-O {[%emt 0:03:51]} 18. g4 {[%emt 0:07:28]} Rf7 {[%emt 0:03:33]} 19. f3 {[%emt 0:00:50]} a5 {[%emt 0:02:44]} 20. Ke3 {[%emt 0:01:56]} Rg7 {[%emt 0:01:51]} 21. Rh2 {[%emt 0:01:23]} Kf7 {[%emt 0:05:14]} 22. b4 {[%emt 0:03:08] Strongly threatening bxc5.} b6 {[%emt 0:00:12]} 23. Rha2 {[%emt 0:01:08]} Rgg8 {[%emt 0:00:37]} 24. bxc5 {[%emt 0:01:05]} bxc5 {[%emt 0:01:00]} 25. Rxa5 {[%emt 0:00:12]} Rxa5 {[%emt 0:00:15]} 26. Rxa5 $16 {[%emt 0:00:06][%mdl 4096] Endgame KRB-KRB} Rb8 {[%emt 0:00:33] [#] This costs Black the game.} (26... Bc8 $16 27. Ra7 Rd8) 27. Rxc5 $1 $18 {[%emt 0:03:47]} ({Much less strong is} 27. Ra7 $6 Ke8 28. Ra2 Kf7) 27... Rb3 {[%emt 0:00:52]} 28. Rc7 {[%emt 0:00:23]} Rxc3+ $2 {[%emt 0:00:26]} (28... Ke8 {was called for.} 29. Kd3 Ra3) 29. Kd4 {[%emt 0:00:24]} Rxf3 {[%emt 0:00:07]} 30. Bxd6 {[%emt 0:00:10]} ({Worse is} 30. Rxd7 Rxf4 31. c5 dxc5+ 32. Ke3 Rxg4 $15) 30... Ke8 {[%emt 0:00:02] [#]} 31. Bb4 {[%emt 0:00:14] Threatens to win with c5.} Rf4 {[%emt 0:07:23]} (31... Rb3 $142) 32. c5 {[%emt 0:00:51][%cal Bc4c5,Bc5c6][%mdl 32] Threatening mate with c6.} e5+ {[%emt 0:01:46]} 33. Ke3 {[%emt 0:06:16] White threatens c6 and mate.} Bxg4 {[%emt 0:01:10]} 34. c6 {[%emt 0:00:06]} Rf3+ {[%emt 0:01:15]} 35. Kd2 {[%emt 0:00:02]} Rb3 {[%emt 0:00:38]} 36. Bd6 {[%emt 0:01:09] White mates.} Rg3 {[%emt 0:01:02]} 37. Re7+ {[%emt 0:00:18]} Kf8 {[%emt 0:00:04]} 38. Rxe5+ {[%emt 0:00:11] Weighted Error Value: White=0.05 (flawless) /Black=0.56} 1-0

[Event "13th Dolomiti-Forni di Sopra-A 2022"]
[Site "Forni di Sopra"]
[Date "2022.06.17"]
[Round "7.3"]
[White "Harshavardhan G B"]
[Black "Prraneeth Vuppala"]
[Result "1/2-1/2"]
[ECO "E04"]
[WhiteElo "2367"]
[BlackElo "2447"]
[Annotator "TA"]
[PlyCount "87"]
[EventDate "2022.06.13"]
[EventType "swiss"]
[EventCountry "ITA"]
[SourceTitle "playchess.com"]
[Source "ChessBase"]
[SourceQuality "1"]
[TimeControl "40/5400+30:1800+30"]

{[%evp 20,87,22,20,18,19,24,18,18,16,29,-7,-7,-24,-18,-27,-27,-31,-34,-22,-31,-31,-26,-34,-37,-25,-31,-25,-15,-26,-13,-26,-22,-24,-16,-16,-16,-16,-16,-18,0,0,0,0,0,0,0,-5,-6,-55,-6,-4,8,8,13,0,0,0,0,0,0,0,0,0,0,0,0,0,0,0]} 1. d4 {[%emt 0:00:36]} Nf6 {[%emt 0:00:19]} 2. c4 {[%emt 0:00:34]} e6 {[%emt 0:00:24]} 3. g3 {[%emt 0:00:43]} d5 {[%emt 0:00:41]} 4. Bg2 {[%emt 0:00:08]} dxc4 {[%emt 0:00:45]} 5. Nf3 {[%emt 0:00:05]} c5 {[%emt 0:00:12]} 6. O-O {[%emt 0:00:46]} Nc6 {[%emt 0:00:16]} 7. dxc5 {[%emt 0:01:00]} Qxd1 {[%emt 0:01:01]} 8. Rxd1 {[%emt 0:00:06]} Bxc5 {[%emt 0:00:07]} 9. Nbd2 {[%emt 0:00:26]} c3 {[%emt 0:00:50]} 10. bxc3 {[%emt 0:00:09]} O-O {[%emt 0:00:17]} 11. Nb3 {[%emt 0:00:27]} Be7 {[%emt 0:00:20] E04: Open Catalan: 5 Nf3.} 12. Nfd4 {[%emt 0:01:42]} Nxd4 {[%emt 0:00:48]} 13. cxd4 {[%emt 0:00:31]} Nd5 {[%emt 0:00:31]} 14. Bd2 {[%emt 0:04:12]} f5 {[%emt 0:00:51]} 15. Rac1 {[%emt 0:01:53]} b6 {[%emt 0:02:18]} 16. f3 {[%emt 0:00:48] 16.Bf4 is the modern continuation.} Ba3 {[%emt 0:22:36] [#]} 17. Rc2 $146 {[%emt 0:05:32]} ({Predecessor:} 17. Rb1 Bb7 18. e4 Nf6 19. Na5 Ba6 20. Rb3 Bd6 21. e5 bxa5 22. exd6 Rfd8 23. Bf4 Ne8 24. Rc1 Nxd6 25. Rc6 {1-0 (25) Zaragatski,I (2488)-Colpe,M (2351) Hamburg 2014}) 17... Bb7 {[%emt 0:07:08]} 18. e4 {[%emt 0:12:56]} Nf6 {[%emt 0:00:40]} 19. Bf4 {[%emt 0:09:53][%cal Od4d5]} fxe4 {[%emt 0:06:54]} 20. fxe4 {[%emt 0:00:13]} Bxe4 {[%emt 0:01:28]} (20... Nxe4 $2 21. Re1 $18) 21. Bxe4 {[%emt 0:00:12]} Nxe4 {[%emt 0:00:06]} 22. Re1 {[%emt 0:00:15]} Nf6 {[%emt 0:02:33][%cal Be4f6,Bf6d5,Bd5e3,Be3d1][%mdl 32]} 23. Rxe6 {[%emt 0:00:33]} Rac8 {[%emt 0:03:57]} 24. Rec6 {[%emt 0:01:28]} Rxc6 {[%emt 0:18:22]} 25. Rxc6 {[%emt 0:00:10]} Nd5 {[%emt 0:00:13]} 26. Bd6 {[%emt 0:02:23]} Bxd6 {[%emt 0:00:50]} 27. Rxd6 $11 {[%emt 0:00:06][%mdl 4096] Endgame KRN-KRN} Ne3 {[%emt 0:15:34][%csl Ge3][%cal Rf8f1] [#]} 28. Nd2 {[%emt 0:00:30] Against Rf1+} Rc8 {[%emt 0:01:12]} 29. Kf2 {[%emt 0:00:52]} Nd1+ {[%emt 0:01:16]} 30. Kf3 {[%emt 0:03:48]} Nc3 {[%emt 0:05:38]} 31. Rd7 {[%emt 0:00:25]} a5 {[%emt 0:00:59]} 32. d5 {[%emt 0:00:47]} Nxa2 {[%emt 0:01:22]} 33. Ne4 {[%emt 0:01:26]} Nb4 {[%emt 0:04:18]} 34. Ng5 {[%emt 0:01:22]} (34. d6 $11 {was preferrable.}) 34... a4 {[%emt 0:01:19]} (34... Re8 $15) 35. Ne6 {[%emt 0:06:20] The position is equal.} Nxd5 {[%emt 0:01:19]} 36. Rxd5 {[%emt 0:00:36] KRN-KR} a3 {[%emt 0:00:05]} 37. Rd1 {[%emt 0:03:23]} b5 {[%emt 0:00:22][%cal Bb6b5,Bb5b4][%mdl 32]} 38. Nd4 {[%emt 0:01:00]} b4 {[%emt 0:00:34] [#] Threatens to win with ...Rd8.} 39. Ke4 {[%emt 0:00:12]} Rc3 {[%emt 0:01:01]} 40. Ra1 {[%emt 0:00:58]} h5 {[%emt 0:00:08]} 41. Rb1 {[%emt 0:30:39]} a2 {[%emt 0:08:10]} 42. Ra1 {[%emt 0:00:00]} b3 {[%emt 0:03:18]} 43. Nxb3 {[%emt 0:00:00]} Rxb3 {[%emt 0:00:05]} 44. Rxa2 {[%emt 0:00:00] Weighted Error Value: White=0.05 (flawless) /Black=0.03 (flawless)} 1/2-1/2

[Event "13th Dolomiti-Forni di Sopra-A 2022"]
[Site "Forni di Sopra"]
[Date "2022.06.17"]
[Round "7.4"]
[White "Bellia, Fabrizio"]
[Black "Korneev, Oleg"]
[Result "1/2-1/2"]
[ECO "C67"]
[WhiteElo "2418"]
[BlackElo "2521"]
[Annotator "TA"]
[PlyCount "43"]
[EventDate "2022.06.13"]
[EventType "swiss"]
[EventCountry "ITA"]
[SourceTitle "playchess.com"]
[Source "ChessBase"]
[SourceQuality "1"]
[TimeControl "40/5400+30:1800+30"]

{[%evp 12,43,33,25,33,25,31,33,33,13,16,8,40,30,45,33,36,22,27,0,27,0,0,0,0,0,11,0,0,0,17,10,10,-8]} 1. e4 {[%emt 0:00:05]} e5 {[%emt 0:07:23]} 2. Nf3 {[%emt 0:00:09]} Nc6 {[%emt 0:00:09]} 3. Bb5 {[%emt 0:00:12]} Nf6 {[%emt 0:01:57]} 4. O-O {[%emt 0:00:12]} Nxe4 {[%emt 0:01:22]} 5. Re1 {[%emt 0:00:27]} Nd6 {[%emt 0:00:05]} 6. Nxe5 {[%emt 0:00:10]} Be7 {[%emt 0:00:03]} 7. Bf1 {[%emt 0:00:12]} Nf5 {[%emt 0:01:45] C67: Ruy Lopez: Berlin Defence: 4 0-0 Nxe4.} 8. Nf3 {[%emt 0:02:21]} O-O {[%emt 0:01:18]} 9. d4 {[%emt 0:01:06]} d5 {[%emt 0:00:39] White is slightly better.} 10. Bf4 {[%emt 0:04:04]} g5 {[%emt 0:18:42]} 11. Bc1 {[%emt 0:04:09] [#]} Kh8 $146 {[%emt 0:07:28]} ({Predecessor:} 11... g4 12. Ne5 Nxe5 13. dxe5 h5 14. Nc3 Be6 15. Bd3 Ng7 16. Ne2 c5 17. c3 Qb6 {½-½ (23) Tomczak,J (2589)-Krasenkow,M (2628) Warsaw 2018}) 12. c3 {[%emt 0:02:21]} f6 {[%emt 0:01:35]} 13. g3 {[%emt 0:07:27]} Bd6 {[%emt 0:00:42]} 14. b3 {[%emt 0:00:35]} Nce7 {[%emt 0:00:25]} 15. Ba3 {[%emt 0:00:26]} Ng6 {[%emt 0:00:45]} 16. Bg2 {[%emt 0:07:14]} c6 {[%emt 0:00:29] The position is equal.} 17. Nfd2 {[%emt 0:04:50]} a5 {[%emt 0:04:37]} 18. Bxd6 {[%emt 0:02:15]} Qxd6 {[%emt 0:03:02]} 19. a4 {[%emt 0:00:11]} Bd7 {[%emt 0:00:45]} 20. Na3 {[%emt 0:00:48]} Rae8 {[%emt 0:08:14]} 21. Nc2 {[%emt 0:01:21]} Kg7 {[%emt 0:01:40][%cal Oh7h5]} 22. c4 {[%emt 0:03:24] Weighted Error Value: White=0.07 (flawless) /Black=0.07 (flawless)} 1/2-1/2

[Event "13th Dolomiti-Forni di Sopra-A 2022"]
[Site "Forni di Sopra"]
[Date "2022.06.17"]
[Round "7.5"]
[White "Vezzosi, Paolo"]
[Black "Cappelletto, Joshuaede"]
[Result "1/2-1/2"]
[ECO "A48"]
[WhiteElo "2225"]
[BlackElo "2276"]
[Annotator "TA"]
[PlyCount "90"]
[EventDate "2022.06.13"]
[EventType "swiss"]
[EventCountry "ITA"]
[SourceTitle "playchess.com"]
[Source "ChessBase"]
[SourceQuality "1"]
[TimeControl "40/5400+30:1800+30"]

{[%evp 13,90,-4,-4,-11,0,-4,14,-14,-5,-17,-13,-47,-12,-21,-10,-11,-14,-18,-24,-9,-18,-3,-14,-24,-7,-37,-40,-49,-50,-82,-58,-116,-79,-85,-75,-77,-82,-62,0,-53,-53,-65,-64,-87,-83,-75,-81,-118,-108,-135,-118,-166,-154,-154,-154,-154,-156,-235,-235,-235,-213,-262,-203,-293,-293,-409,-234,-234,-112,-269,-267,-256,-264,-329,-311,-353,-334,-224,-66]} 1. d4 {[%emt 0:00:03]} Nf6 {[%emt 0:00:20]} 2. Nf3 {[%emt 0:00:30]} g6 {[%emt 0:00:16]} 3. Bg5 {[%emt 0:00:42]} Bg7 {[%emt 0:00:13]} 4. Nbd2 {[%emt 0:00:16]} O-O {[%emt 0:00:23]} 5. c3 {[%emt 0:00:12]} d6 {[%emt 0:00:19]} 6. e4 {[%emt 0:00:39]} c5 {[%emt 0:03:51]} 7. dxc5 {[%emt 0:00:43]} dxc5 {[%emt 0:00:07]} 8. Bc4 {[%emt 0:00:14] A48: 1 d4 Nf6 2 Nf3 g6: Torre, London and Colle Systems.} Qc7 {[%emt 0:00:35]} 9. O-O {[%emt 0:02:04]} h6 {[%emt 0:06:42]} 10. Bh4 {[%emt 0:00:45] The position is equal.} (10. Bxf6 $5 exf6 11. Bd5 $11) 10... Nh5 {[%emt 0:00:07]} 11. Re1 {[%emt 0:02:03]} Nc6 {[%emt 0:00:14]} 12. a4 {[%emt 0:00:57] [#]} b6 $146 {[%emt 0:03:43]} (12... g5 $5 {[%cal Rg5h4]} 13. Bg3 Nxg3 14. hxg3 Rd8 $11) ({Predecessor:} 12... Bg4 13. Qc2 Rad8 14. Bg3 Nxg3 15. hxg3 Na5 16. Ba2 c4 17. Nf1 Rd3 18. Ne3 Be6 19. Red1 Rxe3 20. fxe3 {1-0 (53) Drazic,S (2411)-Omorjan,D (2271) Novi Sad 2018}) 13. Qc2 {[%emt 0:00:40]} Bb7 {[%emt 0:08:41]} 14. Nf1 {[%emt 0:08:07]} Rad8 {[%emt 0:09:21]} 15. Ne3 {[%emt 0:03:22]} g5 {[%emt 0:08:45]} 16. Bg3 {[%emt 0:00:56]} Nxg3 {[%emt 0:00:54]} 17. hxg3 {[%emt 0:02:13]} e6 {[%emt 0:00:05] Inhibits Nd5.} 18. Rad1 {[%emt 0:09:26]} Ne5 {[%emt 0:11:18]} 19. Ba2 {[%emt 0:06:00]} Ng6 {[%emt 0:11:48]} 20. Bb1 {[%emt 0:02:47]} Bc6 {[%emt 0:03:03]} 21. Nc4 {[%emt 0:04:54]} a6 {[%emt 0:02:31]} 22. Qb3 {[%emt 0:07:19]} (22. e5 $15) 22... b5 {[%emt 0:02:55]} 23. axb5 {[%emt 0:00:19]} axb5 {[%emt 0:00:03]} 24. Ne3 {[%emt 0:02:21]} Qb7 {[%emt 0:04:11]} 25. Qc2 {[%emt 0:01:20]} Qc7 {[%emt 0:06:12]} (25... Rfe8 $15) 26. Qe2 {[%emt 0:03:43]} (26. Qb3 $11) 26... Rxd1 $15 {[%emt 0:02:46]} 27. Rxd1 {[%emt 0:00:46][%cal Oe4e5]} Rd8 {[%emt 0:02:26]} 28. Rd2 {[%emt 0:05:11]} Rb8 {[%emt 0:00:51]} 29. Qd3 {[%emt 0:11:10]} b4 {[%emt 0:00:13]} 30. c4 {[%emt 0:07:24]} Rc8 {[%emt 0:03:51]} 31. b3 {[%emt 0:03:11]} Qe7 {[%emt 0:01:05]} 32. Kh2 {[%emt 0:03:46]} (32. g4 $17) 32... h5 {[%emt 0:01:26][%cal Bh6h5,Bh5h4][%mdl 32]} 33. g4 {[%emt 0:00:53]} Ne5 {[%emt 0:03:04]} 34. Nxe5 {[%emt 0:00:18]} Bxe5+ {[%emt 0:00:03] This bishop pair is nice.} 35. g3 {[%emt 0:02:04]} (35. Kg1 $17 {is a better defense.} h4 36. Ra2) 35... h4 $19 {[%emt 0:00:07]} 36. Nf1 {[%emt 0:00:06]} Kg7 {[%emt 0:03:04]} 37. Kg1 {[%emt 0:11:36]} Rh8 {[%emt 0:00:06]} 38. Bc2 {[%emt 0:00:00]} (38. Ra2 $142) 38... Qf6 {[%emt 0:00:42]} 39. Bd1 {[%emt 0:00:00]} Qg6 {[%emt 0:00:26]} (39... Bc3 $142 40. Ra2 Rd8) 40. Bf3 {[%emt 0:00:00]} Qh6 {[%emt 0:02:51]} (40... Ra8 $19 {is more deadly. Threatens to win with ...Qf6.} 41. Qe3 Ra5) 41. Bg2 $2 {[%emt 0:24:34] Loses the game.} (41. Qe3 $17) 41... Ra8 {[%emt 0:05:59][%cal Bh8a8,Ba8a5,Ba5a2][%mdl 32]} ({But not} 41... hxg3 $2 42. Nxg3 Qh4 43. Ra2 $19) 42. Qe3 {[%emt 0:00:00]} Ra5 {[%emt 0:05:47]} 43. Bf3 {[%emt 0:00:00]} Qf6 {[%emt 0:05:31]} 44. Rd3 {[%emt 0:00:00]} Ra2 {[%emt 0:04:05] Against Qe2. And now ...Bd4 would win.} 45. Qxc5 {[%emt 0:00:00] [#]} Ba8 $2 {[%emt 0:01:06] Weighted Error Value: White=0.27 (precise) /Black=0.15 (very precise)} (45... hxg3 $1 $19 46. fxg3 {[#]} (46. Qxc6 $2 Bd4 $19) 46... Rb2 $1) 1/2-1/2

[Event "13th Dolomiti-Forni di Sopra-A 2022"]
[Site "Forni di Sopra"]
[Date "2022.06.17"]
[Round "7.6"]
[White "Goh, Zi Han"]
[Black "Karttunen, Mika"]
[Result "0-1"]
[ECO "E01"]
[WhiteElo "2087"]
[BlackElo "2488"]
[Annotator "TA"]
[PlyCount "116"]
[EventDate "2022.06.13"]
[EventType "swiss"]
[EventCountry "ITA"]
[SourceTitle "playchess.com"]
[Source "ChessBase"]
[SourceQuality "1"]
[TimeControl "40/5400+30:1800+30"]

{[%evp 9,116,0,25,28,25,26,20,30,32,47,28,28,25,45,43,10,2,-11,2,-12,0,16,13,25,20,26,77,78,64,63,78,76,109,98,260,256,258,254,363,358,338,55,300,82,91,87,91,79,77,70,142,123,126,77,88,88,115,105,119,40,37,18,25,11,42,47,40,-8,-4,-53,0,0,61,80,79,78,75,77,97,-202,-177,-192,-146,-147,-127,-802,-87,-1262,-652,-630,-629,-825,-1066,-1044,-1037,-957,-945,-1127,-1120,-1341,-1168,-29975,-29976,-29971,-29971,-29987,-29988,-29991,-29992]} 1. d4 {[%emt 0:00:49]} Nf6 {[%emt 0:00:08]} 2. c4 {[%emt 0:00:10]} e6 {[%emt 0:00:07]} 3. Nf3 {[%emt 0:00:30]} d5 {[%emt 0:00:12]} 4. g3 {[%emt 0:00:36]} Bb4+ {[%emt 0:00:10]} 5. Bd2 {[%emt 0:01:36]} Bd6 {[%emt 0:00:09]} 6. Bg2 {[%emt 0:08:32] E01: Catalan: Early deviations.} O-O {[%emt 0:00:17]} 7. O-O {[%emt 0:00:43]} c6 {[%emt 0:02:48]} 8. Nc3 {[%emt 0:03:55] The position is equal. 8.Bc3 is the modern continuation.} Ne4 {[%emt 0:02:57]} 9. Nxe4 {[%emt 0:12:58]} dxe4 {[%emt 0:00:23]} 10. Ne1 {[%emt 0:02:11]} f5 $1 {[%emt 0:00:34][%cal Bf7f5,Bf5f4,Bf4g3][%mdl 32] [#]} 11. f3 $146 {[%emt 0:04:51]} ({Predecessor:} 11. Bf4 Bxf4 12. gxf4 Qh4 13. f3 Rf6 14. fxe4 fxe4 15. Bxe4 Rh6 16. Rf2 Nd7 17. e3 {1-0 (56) Exler,V (2122)-Unuk,L (2363) Austria 2017}) 11... e5 {[%emt 0:07:06]} 12. Bc3 {[%emt 0:04:33]} exd4 {[%emt 0:06:15]} 13. Qxd4 {[%emt 0:03:06][%csl Gc3][%cal Rd4g7]} Qe7 {[%emt 0:00:47]} 14. Kh1 {[%emt 0:01:02][%cal Rf3e4]} (14. fxe4 $2 Bc5 15. Nd3 Bxd4+ $19) 14... Bc5 {[%emt 0:06:02]} 15. Qd2 {[%emt 0:08:04]} f4 {[%emt 0:31:01]} 16. fxe4 {[%emt 0:12:59]} Be3 $1 {[%emt 0:04:04]} 17. Qc2 {[%emt 0:04:11]} Be6 {[%emt 0:08:22]} (17... fxg3 $11 18. Rxf8+ Qxf8) 18. Nd3 $16 {[%emt 0:04:35][%cal Rd3f4]} fxg3 {[%emt 0:00:22]} 19. Rxf8+ {[%emt 0:01:45]} (19. hxg3 Qg5 20. Rxf8+ Kxf8 21. Rf1+ Kg8 $17) 19... Qxf8 {[%emt 0:00:05]} 20. Rf1 $1 {[%emt 0:00:48]} (20. hxg3 $2 g5 21. Nf2 Bxf2 $19) 20... Qe7 {[%emt 0:00:23]} 21. Rf3 {[%emt 0:02:06]} (21. hxg3 Qg5 22. Nf2 (22. Nf4 $2 Qh6+ 23. Nh3 Bxh3 $19) 22... Qxg3 $17) 21... Qh4 $2 {[%emt 0:04:56]} 22. Rxg3 $18 {[%emt 0:01:03]} Bh6 {[%emt 0:00:05]} 23. Nc5 {[%emt 0:06:54][%csl LRb7,LRe6]} Bf7 {[%emt 0:00:56]} (23... Bc8 {keeps fighting.} 24. Qd1 Qe7) 24. Qd3 {[%emt 0:03:04]} (24. Nxb7 Bg6 25. Qd3 Na6 $18) 24... Na6 {[%emt 0:02:36]} 25. Qd4 {[%emt 0:02:59]} (25. Nxb7 $18 Bg6 26. Qd7) 25... Bg6 $2 {[%emt 0:00:29]} (25... Rd8 $1 $14 26. Nd7 (26. Rxg7+ Kf8 $17) 26... Bg6) 26. Nxa6 $2 {[%emt 0:04:09]} (26. Nxb7 $18 {is the precise move to win. Nd6 is the strong threat.} Rf8 27. Nd6) 26... Rd8 $16 {[%emt 0:00:18] [#]} 27. Qg1 {[%emt 0:00:34] Hoping for Nc5.} bxa6 {[%emt 0:01:07]} 28. Rd3 {[%emt 0:01:58]} Rf8 {[%emt 0:02:29][%cal Oh4e4]} 29. Qd4 {[%emt 0:00:39][%cal Oe4e5]} Qg4 {[%emt 0:01:52]} (29... Qe7 $1 $14) 30. Bf3 {[%emt 0:00:40]} Qh3 {[%emt 0:00:10][%cal Og6e4]} 31. Qg1 {[%emt 0:01:24]} (31. Qxa7 $2 Bxe4 $1 32. Qf2 (32. Bxe4 $2 Rf1+ 33. Qg1 Rxg1+ 34. Kxg1 Be3+ 35. Rxe3 Qxe3+ 36. Kg2 Qxe4+ $19) 32... Bxd3 $19) (31. Kg1 $142) 31... Bf4 {[%emt 0:01:29]} 32. Qg2 {[%emt 0:00:13]} Qe6 {[%emt 0:01:58]} 33. b3 {[%emt 0:01:12]} Bc7 {[%emt 0:00:06]} 34. Qg5 {[%emt 0:00:42]} (34. Rd1 $16) 34... h6 $14 {[%emt 0:16:47]} ({Don't take} 34... Qh3 35. Qg2 Qe6 36. Rd1 $16) 35. Qg2 {[%emt 0:00:13]} Rf4 $1 {[%emt 0:00:00]} 36. Kg1 {[%emt 0:01:02]} Rh4 {[%emt 0:00:00]} 37. h3 {[%emt 0:00:29]} h5 {[%emt 0:00:00] Inhibits Bg4.} 38. Qf2 {[%emt 0:01:33]} (38. Kf1 $14 {should be considered.}) 38... Qxh3 $11 {[%emt 0:00:00]} 39. Qd4 {[%emt 0:00:12] [#]} (39. Qg2 $11 Bb6+ 40. Kf1 Qxg2+ 41. Kxg2 Bxe4 42. Rd6) 39... Bh2+ {[%emt 0:00:40]} (39... Bb6 $2 40. c5 Qg3+ 41. Bg2 (41. Kf1 Bf5 $18) 41... Qh2+ 42. Kf1 Rf4+ 43. Rf3 Rxf3+ 44. exf3 $18) ({Black should try} 39... Rg4+ $1 $15 40. Bxg4 Qxg4+ 41. Kf1 Bxe4) 40. Kf2 {[%emt 0:00:18][%csl Gc3][%cal Rd4g7,Bg1f2,Bf2f1,Bf1e1][%mdl 32]} Qg3+ {[%emt 0:00:23]} (40... Bg3+ $1 $11 41. Kg1 Bh2+ 42. Kf2 Bg3+ 43. Kg1 Bh2+) 41. Kf1 $14 {[%emt 0:30:01][%csl Gc3][%cal Rd4g7]} Bf5 {[%emt 0:09:03] ( -> ...Bh3+)} 42. Qf2 $1 {[%emt 0:00:00]} Bh3+ {[%emt 0:09:11]} 43. Ke1 $1 {[%emt 0:00:00]} Be6 {[%emt 0:00:30]} 44. e3 $2 {[%emt 0:00:00][%mdl 8192] [#]} (44. Rd8+ $16 {stays on course.} Kh7 45. Qxg3 Bxg3+ 46. Kd1) 44... Qg5 $1 $36 {[%emt 0:01:41][%mdl 2048] White is under strong pressure.} 45. Kd1 {[%emt 0:00:00]} Bg3 {[%emt 0:05:02]} (45... Rh3 $19 46. Kc2 Bc7) 46. Qg1 $17 {[%emt 0:00:00]} Rh2 {[%emt 0:01:09] Threatens to win with ...Rf2. Black is more active.} 47. Rd6 $2 {[%emt 0:00:00][%mdl 8192] [#]} (47. Rd2 $17 Rxd2+ 48. Kxd2) 47... Bh3 $2 {[%emt 0:00:59]} (47... Rf2 $1 $19 48. Rd3 Rxf3) 48. Be1 $2 {[%emt 0:04:14][%mdl 8192]} (48. Rd2 $17 Rxd2+ 49. Kxd2) 48... h4 {[%emt 0:02:19]} 49. Rd2 {[%emt 0:00:54]} Rxd2+ {[%emt 0:00:30]} 50. Bxd2 {[%emt 0:00:31]} Bg4 {[%emt 0:00:44]} 51. Qg2 {[%emt 0:00:22]} Bxf3+ {[%emt 0:02:12]} 52. Qxf3 $19 {[%emt 0:00:01][%mdl 4096] Endgame KQB-KQB} h3 {[%emt 0:00:06]} 53. Ke2 {[%emt 0:00:26]} h2 {[%emt 0:00:18]} 54. Bb4 {[%emt 0:00:59] [#]} Qf6 $1 {[%emt 0:03:01] And now ...Qb2+ would win.} 55. Qh5 {[%emt 0:00:23]} (55. e5 Qxf3+) 55... Qf2+ {[%emt 0:00:23] Black mates.} 56. Kd3 {[%emt 0:00:24]} Qf1+ {[%emt 0:00:04]} 57. Kd4 {[%emt 0:00:10]} h1=Q {[%emt 0:00:19]} 58. Qe8+ {[%emt 0:00:14]} Kh7 {[%emt 0:00:04] Never resign too early!  Weighted Error Value: White=0.74/Black=0.47} 0-1